Cogmind - Beta 16.1 @@@ ROGUE MODE // 2026.04.24 @ 03:42:05 Player: Shimejimeji Result: Destroyed by D-53 Grenadier with Mini Grenade Launcher Performance ------------- Evolutions (0) 0 Regions Visited (2) 400 Robots Destroyed (21) 105 Value Destroyed (415) 415 Prototype IDs (2) 40 Alien Tech Used (0) 0 Bonus (0) 0 TOTAL SCORE: 960 Bonus ------- None Cogmind --------- Core Integrity 0/250 Matter 300/300 Energy 100/100 System Corruption 0% Temperature Cool (0) Movement Treading (160) Location -10/Mines Parts ------- > --- POWER (1) -------- (None) > --- PROPULSION (2) --- Light Treads Light Treads > --- UTILITY (2) ------ Large Storage Unit Seismic Detector > --- WEAPON (2) ------- (None) > --- INVENTORY (15) --- Ion Engine Backup Plating III Medium Armor Plating Medium Armor Plating Hacking Suite Hacking Suite Particle Gun Particle Gun Rocket Launcher Rocket Launcher Mining Laser Peak State ------------ > --- POWER ------------ Ion Engine > --- PROPULSION ------- Light Treads Light Treads > --- UTILITY ---------- Large Storage Unit Backup Plating III > --- WEAPON ----------- Assault Rifle Assault Rifle > --- INVENTORY -------- Ion Engine Seismic Detector Medium Armor Plating Medium Armor Plating Hacking Suite Hacking Suite Particle Gun Particle Gun Rocket Launcher Rocket Launcher Mining Laser [Rating: 11] Favorites ----------- Power Ion Engine Engine Ion Engine Propulsion Light Treads Treads Light Treads Utility Seismic Detector Device Seismic Detector Storage Medium Storage Unit Protection Backup Plating III Weapon Assault Rifle Ballistic Gun Assault Rifle Build | -11 -10 -10 ------- Run | Yrd Mat Min Slots Evolved . | . . . Power . | . . . Propulsion . | . . . Utility . | . . . Weapon . | . . . Parts Attached 9 | 6 3 . Power 1 | 1 . . Engine 1 | 1 . . Core . | . . . Reactor . | . . . Propulsion 2 | 2 . . Treads 2 | 2 . . Leg . | . . . Wheel . | . . . Hover . | . . . Flight . | . . . Utility 4 | 1 3 . Device 1 | 1 . . Storage 3 | . 3 . Processor . | . . . Hackware . | . . . Protection . | . . . Artifact . | . . . Weapon 2 | 2 . . Energy Gun . | . . . Energy Cannon . | . . . Ballistic Gun 2 | 2 . . Ballistic Cannon . | . . . Launcher . | . . . Special Weapon . | . . . Impact Weapon . | . . . Slashing Weapon . | . . . Piercing Weapon . | . . . Special Melee Weapon . | . . . Unidentified Prototypes . | . . . Parts Lost 3 | . . 3 Power 1 | . . 1 Propulsion . | . . . Utility . | . . . Weapon 2 | . . 2 Highest Loss Streak 3 | . . 3 To Critical Strikes . | . . . Average Backups 8 | 2 8 11 Power . | . 1 1 Propulsion . | . . . Utility 2 | . 2 5 Weapon 4 | . 4 5 Tool/Special . | . . . Unused Backups 11 | . 1 10 Power 1 | . . 1 Propulsion . | . . . Utility 4 | . . 4 Weapon 6 | . 1 5 Tool/Special . | . . . Average Slot Usage (%) 98 | . 98 99 Engine 13 | . 14 13 Treads 28 | . 28 28 Device 13 | . 13 14 Storage 13 | . 12 14 Ballistic Gun 27 | . 28 27 Peak Build Rating 11 | 6 11 9 Average Rating 8 | 4 8 8 On Entrance 5 | . 6 11 Avg Prop Armor Cover (%) . | . . . Naked Turns . | . . . Heaviest Build 31 | 10 31 30 Greatest Support 40 | 40 40 40 Greatest Overweight (x) . | . . . Average Overweight (x) . | . . . Largest Inventory Capacity 15 | 5 15 15 Average Capacity 11 | 5 10 15 Most Carried 11 | 4 11 11 Average Carried 8 | 2 8 11 Final Capacity 15 | 5 15 15 Final Carried 11 | 4 11 11 Class Distribution -------------------- 100% | Mutant Dominant Class ---------------- Mutant | -10/Materials Mutant | -10/Mines Resources | -11 -10 -10 ----------- Run | Yrd Mat Min Matter Collected 646 | 174 472 . Remotely . | . . . Salvage Created 744 | 110 634 . Parts 56 | 14 42 . Haulers Intercepted 2 | . 2 . Recyclers Shooed 2 | . 2 . Parts Field Recycled . | . . . Retrieved Matter . | . . . Parts Self-Destructed . | . . . Prevented . | . . . Parts Restored . | . . . Kills | -11 -10 -10 ------- Run | Yrd Mat Min Combat Hostiles Destroyed 8 | . 8 . Guns 8 | . 8 . Classes Destroyed 7 | 2 5 . Builder 1 | . 1 . Tunneler 5 | 3 2 . Hauler 2 | . 2 . Recycler 2 | 1 1 . Operator 2 | . 2 . Watcher 1 | . 1 . Grunt 8 | . 8 . Best Kill Streak 3 | 2 3 . Combat Bots Only 2 | . 2 . Max Kills in Single Turn 1 | 1 1 . Gunslinging . | . . . Exploded . | . . . Melee . | . . . Uniques/NPCs Destroyed . | . . . Combat | -11 -10 -10 -------- Run | Yrd Mat Min Hostile Shots Fired 42 | . 36 6 Missed 7 | . 7 . Hits 35 | . 29 6 Projectile 35 | . 29 6 AOE 8 | . . 8 Critical Strikes 1 | . 1 . Damage Taken 763 | . 407 356 Core 267 | . 96 171 Absorbed by Shields . | . . . Core Remaining (%) 100 | 100 . . Volleys Fired 63 | 9 52 2 Largest 2 | 2 2 2 Hottest 40 | 40 40 40 Shots Fired 126 | 18 104 4 Gun 126 | 18 104 4 Cannon . | . . . Launcher . | . . . Special . | . . . Kinetic 126 | 18 104 4 Thermal . | . . . Explosive . | . . . Electromagnetic . | . . . Robot Hit Streak 8 | 5 8 4 Robot Miss Streak 5 | 1 5 . Penetration Max . | . . . Secondary Targets . | . . . Shots Hit Robots 73 | 11 58 4 Core Hits 33 | 5 28 . Critical Kills . | . . . Critical Parts Destroyed 1 | . 1 . Critical Strikes 1 | . 1 . Destroy 1 | . 1 . Melee Attacks . | . . . Impact . | . . . Slashing . | . . . Piercing . | . . . Sneak Attacks . | . . . Combat Hostiles . | . . . Follow-up Attacks . | . . . Damage Inflicted 998 | 142 778 78 Guns 932 | 142 739 51 Cannons . | . . . Explosions . | . . . Melee . | . . . Ramming 66 | . 39 27 Kinetic 932 | 142 739 51 Thermal . | . . . Explosive . | . . . Electromagnetic . | . . . Impact . | . . . Slashing . | . . . Piercing . | . . . Highest Corruption . | . . . Average Corruption . | . . . Corruption Purged . | . . . Corruption Blocked . | . . . Overload Shots . | . . . Overflow Damage . | . . . Projectiles . | . . . Explosions . | . . . Melee . | . . . Knockbacks 2 | . 1 1 Impact 2 | . 1 1 Kinetic . | . . . Secondary . | . . . Self-Inflicted Damage . | . . . Shots . | . . . Rammed 11 | . 6 5 Targets Rammed 13 | . 8 5 Kicked . | . . . Crushed 2 | . 2 . Highest Temperature 20 | . 20 . Average Temperature 4 | . 4 . Received Heat Transfer 231 | . 231 . Siege Activations . | . . . Martial Activations . | . . . Shielding Activations . | . . . Robots Disrupted . | . . . Combat Hostiles . | . . . Robots Corrupted . | . . . Combat Hostiles . | . . . Parts Fried . | . . . Impact Corruptions . | . . . Robots Melted . | . . . Combat Hostiles . | . . . Parts Melted . | . . . Heat Transferred . | . . . Parts Sabotaged . | . . . Parts Stolen . | . . . Parts Stripped . | . . . Power Chain Reactions . | . . . Alert | -11 -10 -10 ------- Run | Yrd Mat Min Maximum Alert Level . | . . . Low Security (%) 100 | 100 100 100 Level 1 . | . . . Level 2 . | . . . Level 3 . | . . . Level 4 . | . . . Level 5 . | . . . High Security . | . . . Max Security . | . . . Peak Influence 70 | 10 70 5 Initial 4 | . . 4 Average 10 | 1 12 . Influence Increases 364 | 20 339 5 Destroy 0b10 Robot/C 160 | . 160 . Destroy 0b10 Robot/NC 70 | 20 45 5 Destroy Leader 46 | . 46 . Successful Hack 40 | . 40 . Destroy Structure 3 | . 3 . Partial Spotted 15 | . 15 . Lose Combat Pursuer 30 | . 30 . Influence Decreases 364 | 20 327 17 Entered New Map 8 | . . 8 Time Decay 351 | 20 327 4 Lost Part 5 | . . 5 Squads Dispatched 1 | . 1 . Investigation . | . . . Extermination . | . . . Reinforcement 1 | . 1 . Assault . | . . . Garrison . | . . . Intercept . | . . . Searches Triggered . | . . . Construction Impeded . | . . . Haulers Reinforced . | . . . Active Scanning Responses . | . . . Cargo Convoy Interrupts . | . . . Stealth | -11 -10 -10 --------- Run | Yrd Mat Min Distress Signals . | . . . Communications Jammed . | . . . Distress Signals . | . . . Times Spotted 23 | . 20 3 Peak Tracking Total 3 | . 3 2 Tactical Retreats 2 | . 2 . Traps | -11 -10 -10 ------- Run | Yrd Mat Min Traps Triggered 1 | . 1 . Indirectly . | . . . Trap Hack Attempts . | . . . Triggered . | . . . Disarmed . | . . . Reprogrammed . | . . . Reused . | . . . Traps Extracted . | . . . Installed . | . . . Triggered . | . . . Machines | -11 -10 -10 ---------- Run | Yrd Mat Min Machines Disabled . | . . . Max in Single Turn . | . . . Machines Repaired . | . . . Machines Dismantled . | . . . Machines Sabotaged . | . . . Overloaded Fab Kills . | . . . Hacking | -11 -10 -10 --------- Run | Yrd Mat Min Machines Accessed 7 | . 7 . Terminals 6 | . 6 . Fabricators . | . . . Repair Stations 1 | . 1 . Recycling Units . | . . . Scanalyzers . | . . . Garrison Access . | . . . Total Hacks 14 | . 14 . Successful 9 | . 9 . Failed 5 | . 5 . Catastrophic 1 | . 1 . Database Lockouts . | . . . Manual 10 | . 10 . Terminals 12 | . 12 . Fabricators . | . . . Repair Stations 2 | . 2 . Recycling Units . | . . . Scanalyzers . | . . . Garrison Access . | . . . Terminal Hacks 3 | . 3 . Robot Analysis 2 | . 2 . Prototype ID Bank 1 | . 1 . Fabricator Hacks . | . . . Repair Station Hacks 1 | . 1 . Refit 1 | . 1 . Recycling Unit Hacks . | . . . Scanalyzer . | . . . Garrison Access Hacks . | . . . Unauthorized Hacks 5 | . 5 . Terminals 5 | . 5 . Skim 5 | . 5 . Fabricators . | . . . Repair Stations . | . . . Recycling Units . | . . . Scanalyzers . | . . . Garrison Access . | . . . Data Cores Recovered 1 | . 1 . Used . | . . . Hacking Detections 3 | . 3 . Full Trace Events 1 | . 1 . Feedback Events . | . . . Feedback Blocked . | . . . Robot Schematics Acquired . | . . . Robots Built . | . . . Authchips . | . . . Time . | . . . Total Robot Build Rating . | . . . Part Schematics Acquired . | . . . Parts Built . | . . . Authchips . | . . . Time . | . . . Total Part Build Rating . | . . . Part Studies Acquired . | . . . Parts Repaired . | . . . Time . | . . . Parts Recycled . | . . . Recycled Matter . | . . . Retrieved Matter . | . . . Retrieved Components . | . . . Parts Scanalyzed . | . . . Part Schematics Acquired . | . . . Parts Damaged . | . . . Bothacking | -11 -10 -10 ------------ Run | Yrd Mat Min Used RIF Installer . | . . . Robots Hacked . | . . . Non-combat . | . . . Combat . | . . . Robot Hacks Applied . | . . . Relay Couplers Released . | . . . Fabnet Peak Effective % . | . . . Robots Rewired . | . . . Allies Hacked . | . . . Hacks Repelled . | . . . Allies | -11 -10 -10 -------- Run | Yrd Mat Min Total Allies 3 | . . 3 Largest Group 3 | . . 3 Highest-Rated Group 40 | . . 40 Highest-Rated Ally 16 | . . 16 Total Orders . | . . . Ally Attacks 2 | . . 2 Total Damage 17 | . . 17 Kills 1 | . . 1 Allies Corrupted . | . . . Allies Melted . | . . . Intel | -11 -10 -10 ------- Run | Yrd Mat Min Active Infowar (turns) 1744 | 18 1423 303 Seismic 1744 | 18 1423 303 Robot Analysis Total 2 | . 2 . Derelict Logs Recovered . | . . . Drone Launches . | . . . Drone Recoveries . | . . . Exploration | -11 -10 -10 ------------- Run | Yrd Mat Min Turns Passed 1859 | 97 1459 303 Spaces Moved 951 | 40 731 180 Core 5 | 5 . . Treads 946 | 35 731 180 Legs . | . . . Wheels . | . . . Hover . | . . . Flight . | . . . Fastest Speed 50 | 50 160 160 Average Speed 159 | 146 160 160 Slowest Speed 160 | 160 160 160 Overloaded Moves . | . . . Propulsion Burnouts . | . . . Robots Hopped . | . . . Potential Cave-ins . | . . . Cave-ins Triggered . | . . . Exploration Rate (%) 41 | 3 90 31 Regions Visited 2 Branch Regions 1 Pre-discovered Areas . | . . . Known Exits Taken 1 | . 1 . Unknown Exits Taken 1 | 1 . . Scrap Searched . | . . . Spaces Dug . | . . . Terrain Destroyed . | . . . Melee . | . . . Projectile . | . . . AOE . | . . . Terrain Rammed . | . . . Walls Destroyed . | . . . Machines Disabled . | . . . Actions | -11 -10 -10 --------- Run | Yrd Mat Min Total 1159 | 58 913 188 Wait 108 | . 108 . Move 949 | 39 730 180 Hop . | . . . Pick Up 12 | 4 8 . Fast Attach 6 | 6 . . Attach 1 | . 1 . Detach 1 | . 1 . Swap 3 | . 2 1 Drop 3 | . 3 . Fire 63 | 9 52 2 Melee . | . . . Ram . | . . . Kick . | . . . Crush 13 | . 8 5 Escape Stasis . | . . . Rewire . | . . . Trap . | . . . Miscellaneous . | . . . Route ------- -11/Scrapyard -10/Materials (discovered 5 exits: *Mat x3 / *Min / [*Sub]) -10/Mines (discovered 2 exits: *Mat x2) History --------- Turn | Location | Event 19 | -11/Scrapyard | Discovered new exit (range 16) 98 | -11/Scrapyard | Entered Materials 314 | -10/Materials | Build established: Mutant 668 | -10/Materials | Discovered new exit (range 15) 1034 | -10/Materials | Discovered new exit (range 15) 1143 | -10/Materials | Identified exit to Materials 1146 | -10/Materials | Discovered new exit (range 4) 1210 | -10/Materials | Identified exit to Mines 1267 | -10/Materials | Learned location of 2 exits from Materials 1392 | -10/Materials | Learned 4 Recycling zone layouts 1418 | -10/Materials | Learned location of 2 exits from Materials 1504 | -10/Materials | Learned location of 2 exits from Materials 1557 | -10/Materials | Entered Mines 1607 | -10/Mines | Discovered exit to Materials (range 7) 1621 | -10/Mines | Assisted by bots powering up and referring to "LRC-V3" 1690 | -10/Mines | Discovered exit to Materials (range 12) 1818 | -10/Mines | Assembled infested the area 1855 | -10/Mines | Core integrity fell below 50% 1857 | -10/Mines | Core integrity fell below 20% 1860 | -10/Mines | Destroyed by D-53 Grenadier with Mini Grenade Launcher Last Messages --------------- 01690_ EXIT=FOUND: MATERIALS 01692_ T-07 Excavator is excavating. 01721_ U-05 Engineer lays Concrete. 01722_ T-07 Excavator is excavating. 01722_ U-05 Engineer lays Concrete. 01726_ T-07 Excavator is excavating. 01727_ U-05 Engineer lays Concrete. 01802_ K-01 Serf collects debris. 01818_ ALERT: Infestation in the mines, dispatching Demolisher response squad. 01854_ C-45 Heavy ARC bursts open, deploying its payload. 01854_ D-53 Grenadier unfolds itself. 01854_ Trooper 1b destroyed. 01854_ R-06 Scavenger destroyed. 01854_ Mercenary 1a destroyed. 01854_ U-05 Engineer lays Concrete. 01855_ U-05 Engineer destroyed. 01856_ Ion Engine destroyed. 01856_ Trooper 1a destroyed. 01858_ Assault Rifle destroyed. Map ----- +----------------------------------------------------+ | ???????#########????# ######??????????????# #??? | | ????????????????????# #???????????????# #### | | ????????????????????###### #??????????????## | | ??????????????????######?# #?????????????## | | ??????????????????# ### #????????????## """ | | ??????????????????# ## ############## """ | | ???????????????????# # """ < | | ???????????????????# | | ???????????????????# ############ | | ???????????????????# #??????????# | | ???????????????????## #??????????## ### | | ????????????????????## ##???????????#####?#### | | ?????????????????????####?????????????????????## | | ?????????????????????????????????????#####?????## | | ????????????????????????????????????## ! ##?????# | | ????????????????????????????????????# #?????# | | ????????????????????????????????????# ##????# | | ???????????????##???????????????????# ###??# | | ???????????? ## ???????????????????#[ #### | | ????????????? ??????????????????# ##% | | ??????????????? ???######????????# ### | | ?????????? ### ########## #?## #### | | ?????????? d | #??####??? | | ?????????? # d ###########????????? | | ????????????????????# #??????????????????? | | ????????????????????# @ #??????????????????? | | ????????????????????# ##??????????????????? | | ????????????????????# [ #??????????????????? | | ????????????????????## = ##??????????????????? | | ?????????????????????## #???????????????????? | | ??????????????????????###### #???????????????????? | | ???????????????????????????# #???????????????????? | | ???????????????????????????# #####???????????????? | | ???????????????????????????# #???????????????? | | ???????????????????????????# ### #???????????????? | | ???????????????????????????# #?# #???????????????? | | ???????????????????????????# #?# #???????????????? | | ???????????????????????????# #?# #???????????????? | | ???????????????????????????# #?# ???????????????? | | ???????????????????????????# #?###???????????????? | | ???????????????????????????# ???????????????????? | | ??????????????????????????? ???????????????????? | | ??????????????????????????? ???????????????????? | | ??????????????????????????? ???????????????????? | | ???????????????????????????## ???????????????????? | | ?????????????????????????????#???????????????????? | | ?????????????????????????????????????????????????? | | ?????????????????????????????????????????????????? | | ?????????????????????????????????????????????????? | | ?????????????????????????????????????????????????? | +----------------------------------------------------+ Best States ------------- Heat Dissipation 25 Energy Generation 10 Energy Capacity 250 Matter Stores 300 Matter Capacity 300 Sight Range 16 Terrain Scan Density 10 Armor Coverage 80 Evasion (%) 40 Recoil Reduction 2 Item Schematics ----------------- None Robot Schematics ------------------ None Fabricated ------------ Nothing Repaired ---------- Nothing Studied --------- None Alien Tech Used ----------------- None Achievements -------------- Fitting Room Challenges ------------ None Game ------ Seed PulsarImpactOptics Manual? 0 Play Time 00:12:12 Cumulative 51.9 hours Start 2026.04.24 @ 03:27:50 End 2026.04.24 @ 03:42:05 Sessions 1 Manual Loads 0 Difficulty Rogue Special Mode None Game No. 33 Rogue 33 Adventurer 0 Explorer 0 Win Type - Total 0 Types 0/0/0/0/0/0/0/0/0/0 Lore% 44 Gallery% 30 Achievement% 29 Wizard Run 0 Options --------- Layout 0 ASCII 0 Keyboard 1 Movement Arrows Keybinds 0 Fullscreen 2 Font 18/SmallcapsGlow Map View 76x50 Zoom Use 0% Tactical HUD 1 Map Filters NONE Filters NONE Steam 1 RUN: cb09e345-83a3-4a83-b539-7329514c517e